fUST/lending_fUST_20240112
["ID","MTS","AMOUNT","RATE_DAILY","PERIOD"]
[311272144,1705008646879,-443.98979845,0.00030992,2]
[311272147,1705008646888,-159.13784397,0.00030992,2]
[311272149,1705008646898,-1504.31902634,0.00030998,2]
[311272151,1705008646908,-1504.31902634,0.00030998,2]
[311272153,1705008646917,-1504.31902634,0.00030998,2]
[311272155,1705008646927,-1504.31902634,0.00030998,2]
[311272156,1705008646936,-1504.31902634,0.00030998,2]
[311272158,1705008646945,-1504.31902634,0.00030998,2]
[311272160,1705008646954,-1504.31902634,0.00030998,2]
[311272162,1705008646964,-1504.31902634,0.00030998,2]
[311272164,1705008646974,-1504.31902634,0.00030998,2]
[311272166,1705008646983,-1504.31902634,0.00030998,2]
[311272168,1705008646992,-1054.938322,0.00030998,2]
[311272170,1705008647001,-1054.938322,0.00030998,2]
[311272172,1705008647012,-54373.81323577,0.00031,4]
[311272174,1705008647021,-200.0,0.00031,4]
[311272177,1705008647031,-1516.401694,0.00031,2]
[311272178,1705008647040,-1590.713938,0.00031,2]
[311272180,1705008647049,-1590.713938,0.00031,2]
[311272182,1705008647058,-154.09671267,0.00031008,7]
[311272184,1705008647067,-154.09671267,0.00031039,7]
[311272187,1705008647077,-152.31739519,0.00031059,7]
[311272188,1705008647086,-159.08166,0.00031087,2]
[311272190,1705008647096,-245.946937,0.00031087,2]
[311272193,1705008647106,-178.733525,0.00031087,2]
[311272195,1705008647115,-920.155087,0.00031087,2]
[311272197,1705008647127,-651.899884,0.00031087,2]
[311272199,1705008647136,-466.44081,0.00031087,2]
[311272201,1705008647146,-332.253364,0.00031087,2]
[311272203,1705008647155,-162.974971,0.00031087,2]
[311272205,1705008647163,-233.220405,0.00031087,2]
[311272206,1705008647172,-170.356278,0.00031087,2]
[311272208,1705008647182,-265.036736,0.00031087,2]
[311272210,1705008647191,-543.49870602,0.00031232,2]
[311272212,1705008647200,-555.35,0.00031232,2]
[311272215,1705008647209,-500.0,0.00031232,2]
[311272216,1705008647218,-500.0,0.00031232,2]
[311272218,1705008647227,-500.0,0.00031232,2]
[311272220,1705008647237,-500.0,0.00031232,2]
[311272232,1705008647329,-500.0,0.00031232,2]
[311272234,1705008647339,-957.08,0.00031232,2]
[311272236,1705008647348,-238.97274946,0.00031232,2]
[311272238,1705008647357,-500.0,0.00031232,2]
[311272240,1705008647367,-500.0,0.00031232,2]
[311272242,1705008647376,-500.0,0.00031232,2]
[311272244,1705008647385,-500.0,0.00031232,2]
[311272246,1705008647394,-500.0,0.00031232,2]
[311272248,1705008647404,-10662.07,0.00031232,2]
[311272250,1705008647414,-500.0,0.00031232,2]
[311272252,1705008647423,-500.0,0.00031232,2]
[311272254,1705008647432,-2663.39,0.00031232,2]
[311272256,1705008647441,-500.0,0.00031232,2]
[311272258,1705008647450,-1052.26,0.00031232,2]
[311272260,1705008647459,-558.97,0.00031232,2]
[311272262,1705008647469,-1525.75,0.00031232,2]
[311272264,1705008647478,-500.0,0.00031232,2]
[311272266,1705008647486,-500.0,0.00031232,2]
[311272268,1705008647497,-683.02,0.00031232,2]
[311272270,1705008647506,-5139.21,0.00031232,2]
[311272271,1705008647515,-500.0,0.00031232,2]
[311272273,1705008647524,-500.0,0.00031232,2]
[311272275,1705008647534,-500.0,0.00031232,2]
[311272278,1705008647543,-500.0,0.00031232,2]
[311272280,1705008647553,-500.0,0.00031232,2]
[311272282,1705008647561,-950.32,0.00031232,2]
[311272284,1705008647571,-500.0,0.00031232,2]
[311272285,1705008647580,-609.2,0.00031232,2]
[311272287,1705008647589,-500.0,0.00031232,2]
[311272289,1705008647598,-500.0,0.00031232,2]
[311272292,1705008647608,-839.26,0.00031232,2]
[311272294,1705008647617,-1543.66,0.00031232,2]
[311272296,1705008647628,-151.0,0.00031232,2]
[311272298,1705008647637,-1000.0,0.0003133,2]
[311272300,1705008647646,-151.0,0.00031384,2]
[311272301,1705008647656,-152.31739519,0.00031403,7]
[311272303,1705008647665,-1000.0,0.00031431,2]
[311272305,1705008647675,-12509.05639231,0.000315,10]
[311272307,1705008647684,-555.35,0.00031506,2]
[311272309,1705008647694,-500.0,0.00031506,2]
[311272311,1705008647703,-500.0,0.00031506,2]
[311272313,1705008647712,-500.0,0.00031506,2]
[311272315,1705008647722,-500.0,0.00031506,2]
[311272317,1705008647731,-500.0,0.00031506,2]
[311272320,1705008647740,-957.08,0.00031506,2]
[311272322,1705008647750,-500.0,0.00031506,2]
[311272324,1705008647759,-500.0,0.00031506,2]
[311272325,1705008647768,-500.0,0.00031506,2]
[311272327,1705008647777,-500.0,0.00031506,2]
[311272329,1705008647786,-500.0,0.00031506,2]
[311272331,1705008647795,-10662.07,0.00031506,2]
[311272334,1705008647805,-500.0,0.00031506,2]
[311272336,1705008647815,-500.0,0.00031506,2]
[311272338,1705008647825,-2663.39,0.00031506,2]
[311272340,1705008647835,-191.67117036,0.00031506,2]
[311272342,1705008647843,-1052.26,0.00031506,2]
[311272344,1705008647852,-558.97,0.00031506,2]
[311272346,1705008647862,-1525.75,0.00031506,2]
[311272348,1705008647870,-500.0,0.00031506,2]
[311272350,1705008647879,-500.0,0.00031506,2]
[311272352,1705008647888,-683.02,0.00031506,2]
[311272354,1705008647897,-5139.21,0.00031506,2]
[311272356,1705008647906,-500.0,0.00031506,2]
[311272358,1705008647915,-500.0,0.00031506,2]
[311272360,1705008647924,-500.0,0.00031506,2]
[311272362,1705008647933,-500.0,0.00031506,2]
[311272364,1705008647942,-500.0,0.00031506,2]
[311272366,1705008647951,-950.32,0.00031506,2]
[311272367,1705008647959,-500.0,0.00031506,2]
[311272369,1705008647968,-609.2,0.00031506,2]
[311272371,1705008647978,-500.0,0.00031506,2]
[311272373,1705008647987,-500.0,0.00031506,2]
[311272375,1705008647996,-839.26,0.00031506,2]
[311272377,1705008648005,-1543.66,0.00031506,2]
[311272379,1705008648014,-1000.0,0.00031662,7]
[311272381,1705008648023,-154.09671267,0.00031733,7]
[311272383,1705008648032,-154.09671267,0.00031759,7]
[311272385,1705008648041,-555.35,0.0003178,2]
[311272387,1705008648050,-500.0,0.0003178,2]
[311272388,1705008648058,-500.0,0.0003178,2]
[311272389,1705008648067,-500.0,0.0003178,2]
[311272390,1705008648077,-1054.938322,0.0003178,2]
[311272391,1705008648086,-1054.938322,0.0003178,2]
[311272392,1705008648095,-957.08,0.0003178,2]
[311272393,1705008648104,-500.0,0.0003178,2]
[311272394,1705008648114,-500.0,0.0003178,2]
[311272395,1705008648123,-500.0,0.0003178,2]
[311272396,1705008648133,-500.0,0.0003178,2]
[311272397,1705008648148,-500.0,0.0003178,2]
[311272398,1705008648157,-10662.07,0.0003178,2]
[311272399,1705008648167,-500.0,0.0003178,2]
[311272400,1705008648178,-500.0,0.0003178,2]
[311272401,1705008648197,-2663.39,0.0003178,2]
[311272403,1705008648214,-1052.26,0.0003178,2]
[311272405,1705008648225,-558.97,0.0003178,2]
[311272407,1705008648235,-1525.75,0.0003178,2]
[311272409,1705008648244,-577.22955259,0.0003178,2]
[311272411,1705008648253,-500.0,0.0003178,2]
[311272413,1705008648261,-683.02,0.0003178,2]
[311272415,1705008648271,-5139.21,0.0003178,2]
[311272417,1705008648280,-500.0,0.0003178,2]
[311272419,1705008648289,-500.0,0.0003178,2]
[311272421,1705008648298,-500.0,0.0003178,2]
[311272423,1705008648306,-500.0,0.0003178,2]
[311272425,1705008648316,-500.0,0.0003178,2]
[311272427,1705008648325,-950.32,0.0003178,2]
[311272429,1705008648334,-500.0,0.0003178,2]
[311272431,1705008648343,-609.2,0.0003178,2]
[311272433,1705008648353,-500.0,0.0003178,2]
[311272435,1705008648361,-500.0,0.0003178,2]
[311272437,1705008648370,-839.26,0.0003178,2]
[311272439,1705008648379,-1212.47282924,0.000318,2]
[311272442,1705008648388,-154.09671267,0.00031883,7]
[311272445,1705008648397,-214.52011944,0.00031926,2]
[311272447,1705008648406,-13278.2213,0.00031999,2]
[311272450,1705008648415,-369949.32431594,0.00032,15]
[311272452,1705008648424,-2444.99033654,0.00032,10]
[311272454,1705008648433,-239883.14732364,0.00032,10]
[311272456,1705008648442,-52456.24442552,0.00032,7]
[311272458,1705008648451,-825.18466711,0.00032,2]
[311272460,1705008648460,-194.85553355,0.00032,4]
[311272462,1705008648469,-2193.0,0.00032,90]
[311272464,1705008648478,-26365.64022727,0.00032,15]
[311272466,1705008648487,-151.0,0.00032,2]
[311272468,1705008648497,-6000.0,0.00032,2]
[311272470,1705008648506,-5999.98,0.00032,2]
[311272472,1705008648515,-500.0,0.00032,2]
[311272474,1705008648524,-500.0,0.00032,2]
[311272476,1705008648533,-500.0,0.00032,2]
[311272478,1705008648543,-1054.938322,0.00032,2]
[311272480,1705008648552,-1054.938322,0.00032,2]
[311272482,1705008648561,-1500.0,0.00032,2]
[311272484,1705008648570,-1590.713938,0.00032,2]
[311272486,1705008648580,-1590.713938,0.00032,2]
[311272488,1705008648589,-154.09671267,0.00032046,7]
[311272490,1705008648598,-555.35,0.00032054,2]
[311272492,1705008648607,-500.0,0.00032054,2]
[311272494,1705008648617,-500.0,0.00032054,2]
[311272496,1705008648626,-419.61547142,0.00032054,2]
[311272498,1705008648635,-957.08,0.00032054,2]
[311272500,1705008648644,-500.0,0.00032054,2]
[311272502,1705008648653,-500.0,0.00032054,2]
[311272504,1705008648662,-10662.07,0.00032054,2]
[311272506,1705008648671,-500.0,0.00032054,2]
[311272508,1705008648680,-500.0,0.00032054,2]
[311272510,1705008648689,-2663.39,0.00032054,2]
[311272512,1705008648698,-1052.26,0.00032054,2]
[311272514,1705008648707,-558.97,0.00032054,2]
[311272516,1705008648716,-1525.75,0.00032054,2]
[311272518,1705008648725,-500.0,0.00032054,2]
[311272520,1705008648734,-683.02,0.00032054,2]
[311272522,1705008648743,-5139.21,0.00032054,2]
[311272524,1705008648751,-500.0,0.00032054,2]
[311272526,1705008648760,-500.0,0.00032054,2]
[311272528,1705008648768,-500.0,0.00032054,2]
[311272530,1705008648778,-500.0,0.00032054,2]
[311272532,1705008648786,-500.0,0.00032054,2]
[311272534,1705008648795,-950.32,0.00032054,2]
[311272536,1705008648804,-500.0,0.00032054,2]
[311272538,1705008648813,-609.2,0.00032054,2]
[311272540,1705008648823,-500.0,0.00032054,2]
[311272542,1705008648832,-500.0,0.00032054,2]
[311272544,1705008648841,-1800.62602224,0.00032054,7]
[311272546,1705008648851,-839.26,0.00032054,2]
[311272548,1705008648859,-151.04531359,0.00032073,2]
[311272550,1705008648868,-250.56604981,0.00032073,2]
[311272552,1705008648877,-620.00001834,0.00032089,2]
[311272554,1705008648886,-300.0,0.000321,16]
[311272556,1705008648896,-154.09671267,0.00032157,7]
[311272558,1705008648905,-18786.15199574,0.000322,2]
[311272560,1705008648914,-152.0,0.00032293,4]
[311272562,1705008648923,-154.09671267,0.00032303,7]
[311272564,1705008648932,-151.0,0.00032328,2]
[311272566,1705008648941,-1054.938322,0.00032328,2]
[311272568,1705008648950,-1054.93832342,0.00032328,2]
[311272569,1705008648959,-1590.713938,0.00032328,2]
[311272571,1705008648969,-1590.713938,0.00032328,2]
[311272573,1705008648978,-555.35,0.00032328,2]
[311272576,1705008648988,-500.0,0.00032328,2]
[311272578,1705008648998,-500.0,0.00032328,2]
[311272580,1705008649007,-957.08,0.00032328,2]
[311272582,1705008649016,-500.0,0.00032328,2]
[311272583,1705008649026,-110.34966137,0.00032328,2]
[311272593,1705008649101,-389.65033863,0.00032328,2]
[311272595,1705008649110,-9813.19918425,0.00032328,2]
[311272597,1705008649126,-1543.66,0.0003178,2]
[311272599,1705008649136,-848.87081575,0.00032328,2]
[311272602,1705008649147,-500.0,0.00032328,2]
[311272604,1705008649157,-500.0,0.00032328,2]
[311272606,1705008649166,-2663.39,0.00032328,2]
[311272607,1705008649175,-1052.26,0.00032328,2]
[311272609,1705008649184,-558.97,0.00032328,2]
[311272611,1705008649194,-1525.75,0.00032328,2]
[311272613,1705008649204,-500.0,0.00032328,2]
[311272616,1705008649214,-683.02,0.00032328,2]
[311272618,1705008649224,-5139.21,0.00032328,2]
[311272620,1705008649234,-500.0,0.00032328,2]
[311272621,1705008649243,-500.0,0.00032328,2]
[311272623,1705008649255,-500.0,0.00032328,2]
[311272625,1705008649273,-500.0,0.00032328,2]
[311272627,1705008649369,-500.0,0.00032328,2]
[311272628,1705008649380,-950.32,0.00032328,2]
[311272629,1705008649390,-500.0,0.00032328,2]
[311272630,1705008649399,-609.2,0.00032328,2]
[311272631,1705008649409,-500.0,0.00032328,2]
[311272632,1705008649419,-500.0,0.00032328,2]
[311272633,1705008649429,-839.26,0.00032328,2]
[311272634,1705008649438,-2817.85029678,0.000324,30]
[311272635,1705008649449,-151.0,0.00032431,2]
[311272636,1705008649458,-252.0,0.0003246,7]
[311272637,1705008649468,-1991.0,0.0003247,30]
[311272638,1705008649477,-314.0,0.0003247,30]
[311272639,1705008649486,-710.41536499,0.0003247,30]
[311272648,1705008649786,-322.47705028,0.00012677,2]
[311272649,1705008649795,-818.45624646,0.00012773,2]
[311272651,1705008649807,-49988.2527606,0.00012773,2]
[311272652,1705008649837,-2402.8713511,0.00012773,2]
[311272653,1705008650046,-192.91630631,0.00012771,2]
[311272654,1705008650055,-260.34948307,0.00012771,2]
[311272655,1705008650065,-5574.64232843,0.00012772,2]
[311272702,1705008651262,155.0310062,0.00011493,2]
[311272777,1705008667256,155.0310062,0.00011491,2]
[311272782,1705008685273,155.0310062,0.00011491,2]
[311272786,1705008703314,155.0310062,0.0001149,2]
[311272790,1705008725267,155.0310062,0.0001149,2]
[311272792,1705008745299,155.0310062,0.00011477,2]
[311272794,1705008761269,155.0310062,0.00011476,2]
[311272796,1705008777297,155.0310062,0.00011476,2]
[311272797,1705008793306,155.0310062,0.00011473,2]
[311272799,1705008809448,155.0310062,0.00011473,2]
[311272800,1705008817988,-1989.87267074,0.00012622,2]
[311272801,1705008818010,-20836.46606025,0.00012622,2]
[311272802,1705008818031,-13694.49776337,0.00012623,2]
[311272803,1705008818053,-155.0310062,0.00012623,2]
[311272804,1705008818075,-166.35364662,0.00012623,2]
[311272805,1705008818096,-213.00235315,0.00012623,2]
[311272806,1705008818118,-3557.77649967,0.00012624,2]
[311272807,1705008825282,155.0310062,0.00011472,2]
[311272808,1705008837448,976.18563318,0.00011472,2]
[311272809,1705008845277,155.0310062,0.0001147,2]
[311272810,1705008855433,975.81686302,0.0001147,2]
[311272811,1705008865283,155.0310062,0.00011468,2]
[311272812,1705008885289,155.0310062,0.00011467,2]
[311272814,1705008901294,155.0310062,0.00011352,2]
[311272818,1705008927288,155.0310062,0.00011351,2]
[311272819,1705008943285,155.0310062,0.00011349,2]
[311272828,1705009142222,24900.0,0.00011589,2]
[311272832,1705009162121,4349.3302169,0.00011679,2]
[311272835,1705009345515,989.9133338,0.00011679,2]
[311272836,1705009349795,156.20158753,0.00011679,2]
[311272837,1705009357357,344.73296744,0.00011679,2]
[311272838,1705009362623,165.41976585,0.00011679,2]
[311272839,1705009375520,523.44705876,0.00011297,2]
[311272840,1705009414826,-451.81472846,0.00012451,2]
[311272841,1705009414847,-166.65114347,0.00012451,2]
[311272842,1705009414868,-2652.49883384,0.00012452,2]
[311272843,1705009414889,-560.56224867,0.00012452,2]
[311272844,1705009414909,-160.71702813,0.00012452,2]
[311272845,1705009414929,-1693.74494191,0.00012452,2]
[311272846,1705009414949,-1232.27458544,0.00012452,2]
[311272847,1705009414969,-156.66039464,0.00012453,2]
[311272848,1705009414991,-1989.87267074,0.00012453,2]
[311272849,1705009415011,-155.02480397,0.00012453,2]
[311272850,1705009415032,-901.83243089,0.00012453,2]
[311272851,1705009415053,-637.26620041,0.00012453,2]
[311272852,1705009415075,-155.02480397,0.00012453,2]
[311272853,1705009415096,-174.89741352,0.00012453,2]
[311272854,1705009415117,-1220.46777881,0.00012454,2]
[311272855,1705009415139,-2708.97417906,0.00012454,2]
[311272856,1705009415160,-678.90210458,0.00012454,2]
[311272857,1705009415181,-212.81370949,0.00012455,2]
[311272858,1705009486943,-155.02635448,0.0001239,2]
[311272859,1705009486975,-328.9312618,0.0001239,2]
[311272860,1705009487003,-242.63833742,0.0001239,2]
[311272861,1705009487038,-155.02635448,0.0001239,2]
[311272862,1705009487066,-525.71054623,0.0001239,2]
[311272863,1705009487094,-155.02635448,0.0001239,2]
[311272864,1705009487122,-155.02635448,0.00012391,2]
[311272865,1705009487151,-2030.38673937,0.00012391,2]
[311272866,1705009487178,-155.02635448,0.00012391,2]
[311272867,1705009487204,-1030.79768525,0.00012391,2]
[311272868,1705009487228,-261.8211746,0.00012391,2]
[311272869,1705009487252,-466.77120588,0.00012391,2]
[311272870,1705009487275,-162.78960189,0.00012391,2]
[311272871,1705009487533,-1240.12646753,0.00012391,2]
[311272872,1705009487560,-155.02635448,0.00012391,2]
[311272873,1705009487585,-2457.74697337,0.00012392,2]
[311272874,1705009487614,-213.95710734,0.00012392,2]
[311272875,1705009487638,-301.352632,0.00012392,2]
[311272876,1705009487662,-151.53939782,0.00012393,2]
[311272877,1705009487687,-1576.24044161,0.00012444,2]
[311272878,1705009487713,-36895.86463632,0.00012444,2]
[311272879,1705009487739,-81408.16766469,0.00012444,2]
[311272881,1705009501905,155.02635448,0.00011198,2]
[311272882,1705009523900,155.02635448,0.00011147,2]
[311272883,1705009545899,155.02635448,0.00011146,2]
[311272884,1705009561927,155.02635448,0.00011145,2]
[311272885,1705009581905,155.02635448,0.00011142,2]
[311272886,1705009586182,22478.77171162,0.00011383,2]
[311272887,1705009586215,2421.22828838,0.00011383,2]
[311272890,1705009603952,155.02635448,0.0001114,2]
[311272893,1705009625905,155.02635448,0.00011139,2]
[311272895,1705009636194,158.20187319,0.00011821,2]
[311272899,1705009644130,155.02635448,0.00011134,2]
[311272900,1705009668584,155.0310062,0.00011132,2]
[311272901,1705009689912,155.0310062,0.00011129,2]
[311272904,1705009707925,155.0294556,0.00011126,2]
[311272907,1705009715464,2359.80019356,0.0003,30]
[311272910,1705009727914,155.0294556,0.00011125,2]
[311272921,1705009747927,155.0294556,0.00011124,2]
[311272929,1705009771915,155.0294556,0.0001112,2]
[311272934,1705009785946,155.0294556,0.00011119,2]
[311272935,1705009787119,151.02718489,0.00026539,30]
[311272943,1705009801918,155.0310062,0.00011119,2]
[311272951,1705009816374,353.7007568,0.00011259,2]
[311272972,1705009819925,155.0310062,0.00011029,2]
[311273029,1705009832125,-155.0310062,0.00012251,2]
[311273031,1705009832135,-1270.59110268,0.00012252,2]
[311273383,1705009835965,155.0310062,0.00011029,2]
[311273409,1705009838030,-155.0310062,0.0001225,2]
[311273411,1705009838039,-155.0310062,0.0001225,2]
[311273413,1705009838050,-166.35364662,0.00012251,2]
[311273416,1705009838060,-764.56334818,0.00012252,2]
[311273418,1705009838069,-354.34926187,0.00012252,2]
[311273419,1705009838079,-213.00235315,0.00012253,2]
[311273421,1705009838088,-261.8211746,0.00012253,2]
[311273423,1705009838097,-594.07215949,0.00012253,2]
[311273425,1705009838106,-155.0310062,0.00012254,2]
[311273427,1705009838116,-301.352632,0.00012254,2]
[311273429,1705009838125,-13694.49776337,0.00012254,2]
[311273431,1705009838134,-328.9312618,0.00012255,2]
[311273433,1705009838143,-155.0310062,0.00012255,2]
[311273435,1705009838153,-313.03128997,0.00012255,2]
[311273437,1705009838162,-322.47705028,0.00012255,2]
[311273439,1705009838171,-155.0310062,0.00012255,2]
[311273441,1705009838180,-155.0310062,0.00012255,2]
[311273443,1705009838189,-509.10030575,0.00012255,2]
[311273445,1705009838198,-242.63833742,0.00012255,2]
[311273447,1705009838208,-81065.86768714,0.00012255,2]
[311273449,1705009838218,-15883.65187876,0.00012255,2]
[311273451,1705009838227,-155.0294556,0.00012256,2]
[311273453,1705009838236,-155.0294556,0.00012256,2]
[311273456,1705009838246,-155.0294556,0.00012256,2]
[311273459,1705009838255,-156.66039464,0.00012256,2]
[311273462,1705009838268,-260.34948307,0.00012256,2]
[311273465,1705009838277,-155.0310062,0.00012256,2]
[311273468,1705009838287,-174.89741352,0.00012256,2]
[311273471,1705009838296,-36895.86463632,0.00012256,2]
[311273474,1705009838305,-7945.04739538,0.00012256,2]
[311273476,1705009838314,-15193.63475662,0.00012256,2]
[311273478,1705009838323,-155.0294556,0.00012257,2]
[311273480,1705009838332,-615.66230742,0.00012257,2]
[311273482,1705009838342,-19663.58309656,0.00012257,2]
[311273484,1705009838351,-1291.19265067,0.00012257,2]
[311273486,1705009838360,-1989.87267074,0.00012257,2]
[311273488,1705009838369,-2927.79076094,0.00012257,2]
[311273490,1705009838378,-1240.12646753,0.00012257,2]
[311273492,1705009838387,-1693.74494191,0.00012257,2]
[311273494,1705009838396,-1576.24044161,0.00012257,2]
[311273496,1705009838405,-2708.97417906,0.00012258,2]
[311273498,1705009838415,-521.06936744,0.00012258,2]
[311273500,1705009838424,-678.90210458,0.00012258,2]
[311273502,1705009838433,-3738.72601468,0.00012258,2]
[311273504,1705009838442,-525.71054623,0.00012258,2]
[311273506,1705009838451,-874.79068657,0.00012259,2]
[311273508,1705009838460,-1220.46777881,0.00012259,2]
[311273510,1705009838469,-349.0889436,0.0001226,2]
[311273512,1705009838479,-160.71702813,0.00012353,2]
[311273514,1705009838488,-20836.46606025,0.00012353,2]
[311273516,1705009838497,-19829.54482794,0.00012353,2]
[311273518,1705009838506,-7988.52269899,0.00012353,2]
[311273520,1705009838518,-20865.20196494,0.00012353,2]
[311273522,1705009838527,-169.94995702,0.00012354,2]
[311273524,1705009838536,-270787.85398816,0.00012356,2]
[311273526,1705009838545,-155.02635448,0.00012372,2]
[311273528,1705009838555,-2070.70229933,0.00012383,2]
[311273530,1705009838564,-469.71701685,0.00012384,2]
[311273532,1705009838573,-294.95093398,0.00012442,2]
[311273533,1705009838582,-155.24803236,0.00012442,2]
[311273534,1705009838591,-503.12377488,0.00012442,2]
[311273535,1705009838600,-466.62565226,0.00012442,2]
[311273536,1705009838609,-176.99463356,0.00012442,2]
[311273537,1705009838619,-407.48183567,0.00012442,2]
[311273538,1705009838628,-521.18657264,0.00012443,2]
[311273539,1705009838640,-449.77827105,0.00012449,2]
[311273540,1705009838649,-451.6819269,0.00012449,2]
[311273541,1705009838658,-309.68909263,0.00012449,2]
[311273542,1705009838668,-853.58496867,0.00012449,2]
[311273543,1705009838677,-2418.30923514,0.00012449,2]
[311273544,1705009838686,-4788.51765555,0.00012449,2]
[311273545,1705009838695,-224.25938223,0.00012449,2]
[311273546,1705009838705,-191.01244923,0.00012449,2]
[311273547,1705009838714,-400.02724112,0.00012449,2]
[311273548,1705009838724,-587.05108958,0.00012449,2]
[311273549,1705009838734,-964.55150019,0.00012449,2]
[311273551,1705009838743,-392.45127751,0.00012547,2]
[311273552,1705009838752,-309.76768121,0.00012552,2]
[311273554,1705009838762,-360.80127126,0.00012552,2]
[311273556,1705009838771,-213.39326389,0.00012552,2]
[311273557,1705009838781,-301.7285982,0.00012552,2]
[311273559,1705009838790,-311.30518423,0.00012552,2]
[311273560,1705009838799,-155.04777018,0.00012552,2]
[311273562,1705009838808,-250.47516659,0.00012552,2]
[311273563,1705009838818,-178.44106149,0.00012552,2]
[311273565,1705009838827,-206.44888347,0.00012555,2]
[311273567,1705009838836,-176.51985459,0.00012555,2]
[311273569,1705009838845,-309.86062544,0.00012555,2]
[311273571,1705009838854,-553.96762656,0.00012555,2]
[311273573,1705009838866,-270.68971139,0.00012555,2]
[311273575,1705009838875,-1048.16047271,0.00012555,2]
[311273577,1705009838884,-199.4847221,0.00012555,2]
[311273579,1705009838893,-6602.15861025,0.00012555,2]
[311273581,1705009838902,-155.53002517,0.00012555,2]
[311273583,1705009838911,-155.14300858,0.00012555,2]
[311273585,1705009838920,-215.64200685,0.00012555,2]
[311273587,1705009838930,-215.9027007,0.00012555,2]
[311273589,1705009838939,-155.07133281,0.00012555,2]
[311273590,1705009838948,-162.61777634,0.00012555,2]
[311273593,1705009838957,-329.8178604,0.00012555,2]
[311273594,1705009838966,-2808.94906759,0.00012555,2]
[311273596,1705009838975,-221.97582673,0.00012555,2]
[311273598,1705009838984,-249.4328017,0.00012555,2]
[311273601,1705009838993,-309.78316417,0.00012555,2]
[311273602,1705009839003,-155.34159394,0.00012555,2]
[311273604,1705009839013,-155.1360822,0.00012555,2]
[311273606,1705009839022,-156.00546416,0.00012555,2]
[311273608,1705009839031,-396.84458378,0.00012555,2]
[311273611,1705009839040,-309.16953134,0.00012555,2]
[311273612,1705009839050,-253.20249108,0.00012555,2]
[311273615,1705009839060,-304.4646857,0.00012555,2]
[311273616,1705009839069,-1647.46294033,0.00012555,2]
[311273618,1705009839078,-309.75221062,0.00012555,2]
[311273621,1705009839088,-237.94121335,0.00012555,2]
[311273622,1705009839098,-310.00798648,0.00012575,2]
[311273624,1705009839108,-30.86249789,0.00012624,2]
[311273626,1705009839116,-155.0819706,0.00012746,2]
[311273628,1705009839125,-264.87381963,0.00012746,2]
[311273630,1705009839135,-864.53000715,0.00012746,2]
[311273632,1705009839144,-1250.39757004,0.00012767,2]
[311273634,1705009839153,-185.65689549,0.00012771,2]
[311273636,1705009839162,-214.58564958,0.00012771,2]
[311273639,1705009839172,-323.37417016,0.00012771,2]
[311273641,1705009839181,-189.52613459,0.00012772,2]
[311273643,1705009839191,-155.14313428,0.000129,2]
[311273644,1705009839200,-178.96994881,0.000129,2]
[311273646,1705009839210,-860.80550823,0.00013,2]
[311273648,1705009839219,-200.0,0.00013607,2]
[311273650,1705009839228,-155.28182379,0.0001369,2]
[311273652,1705009839237,-2240.138728,0.00013699,2]
[311273654,1705009839246,-5000.0,0.00013699,2]
[311273656,1705009839257,-280.0,0.00014968,2]
[311273659,1705009839268,-191.21808048,0.00015,2]
[311273660,1705009839277,-155.0310062,0.00015,2]
[311273662,1705009839287,-686.6489252,0.00015,2]
[311273665,1705009839296,-2698.75957629,0.00015,2]
[311273667,1705009839306,-546.87419273,0.00015,2]
[311273668,1705009839316,-155.02480397,0.00015,2]
[311273670,1705009839325,-1284.2876522,0.00015342,2]
[311273673,1705009839336,-22838.22196513,0.00016,2]
[311273674,1705009839346,-391.0,0.00016464,2]
[311273676,1705009839355,-272.00985266,0.000165,2]